[Event "93rd German Championship 2022"]
[Site "Magdeburg"]
[Date "2022.08.17"]
[Round "5.8"]
[White "Richter, Nils"]
[Black "Pajeken, Jakob Leon"]
[Result "1-0"]
[ECO "A06"]
[WhiteElo "2359"]
[BlackElo "2434"]
[Annotator "TA"]
[PlyCount "125"]
[EventDate "2022.08.14"]
[EventType "swiss"]
[EventCountry "GER"]
[SourceTitle "playchess.com"]
[Source "ChessBase"]
[SourceQuality "1"]
[TimeControl "40/5400+30:1800+30"]

{[%evp 9,125,12,17,12,7,0,0,0,8,7,12,9,85,32,29,16,40,25,52,42,92,91,118,126,137,139,129,48,64,20,23,6,7,16,0,0,0,0,37,37,102,104,287,300,331,331,331,331,331,331,331,331,331,331,331,331,331,331,330,330,322,308,308,308,308,308,308,308,329,308,329,308,267,267,267,231,1542,1527,1478,1430,1644,869,856,1600,1437,1430,1437,272,29970,29971,29971,29972,29970,29969,29973,29976,29975,29976,29978,29978,29978,29979,29978,29976,29977,29975,29974,0,29975,29976,29978,29979,29987,29988,29988,29989,29993,29994]} 1. Nf3 {[%emt 0:00:02]} d5 {[%emt 0:00:03]} 2. e3 {[%emt 0:00:10]} Nf6 {[%emt 0:00:08]} 3. c4 {[%emt 0:00:10]} e6 {[%emt 0:00:02]} 4. Nc3 {[%emt 0:00:23]} Nbd7 {[%emt 0:02:01]} 5. b3 {[%emt 0:00:36]} b6 {[%emt 0:00:18]} 6. g3 {[%emt 0:02:31] A17: English Opening: 1...Nf6 with ...Bb4.} Bb7 {[%emt 0:01:37]} 7. cxd5 {[%emt 0:01:06]} exd5 {[%emt 0:01:42][%cal Od5d4]} 8. Bg2 {[%emt 0:00:58] The position is equal.} Bd6 {[%emt 0:03:12]} 9. O-O {[%emt 0:00:21]} a6 {[%emt 0:02:37]} 10. Bb2 {[%emt 0:00:18] [#]} Qe7 $146 {[%emt 0:09:57]} (10... O-O $11 {remains equal.}) ({Predecessor:} 10... O-O 11. Rc1 Re8 12. Re1 c5 13. d4 Bf8 14. Re2 Rc8 15. Rec2 c4 16. a4 cxb3 {1-0 (49) Keymer,V (2664)-Sjugirov,S (2680) Chess.com INT 2022}) 11. Rc1 {[%emt 0:08:02]} (11. Nh4 $1 $16 {[%cal Rh4f5]}) 11... O-O $14 {[%emt 0:08:17]} 12. Re1 {[%emt 0:00:12]} (12. Ne2 {keeps more tension.} g6 13. Re1 Rfe8 14. Nf4) 12... Rac8 {[%emt 0:03:29]} 13. d3 {[%emt 0:01:30][%cal Bd2d3,Bd3d4][%mdl 32]} c5 {[%emt 0:00:55] Inhibits Nd4.} 14. d4 {[%emt 0:01:28]} c4 {[%emt 0:03:13]} (14... Rfe8 $14) 15. bxc4 $1 $16 {[%emt 0:12:00]} dxc4 {[%emt 0:00:54]} 16. e4 $1 {[%emt 0:00:29] Strongly threatening e5.} Bb4 {[%emt 0:02:27][%cal Rf6e4]} (16... Bxe4 $2 17. Nd2 $18) (16... Nxe4 $2 17. Nxe4 Bxe4 18. Nd2 $18) 17. Nh4 {[%emt 0:10:16] And now Nf5 would win.} g6 {[%emt 0:02:14] Against Nf5} 18. e5 {[%emt 0:09:58]} ({Better is} 18. a3 $1 $16 {[%cal Ra3b4]} Bxa3 19. Bxa3 Qxa3 20. e5 Bxg2 21. Nxg2 (21. Kxg2 Ne8 $16)) 18... Bxc3 $14 {[%emt 0:00:35]} (18... Bxg2 $2 19. exf6 (19. Nxg2 Bxc3 20. exf6 Qxe1+ 21. Nxe1 Bxb2 $18) 19... Qd6 20. Nxg2 $18) 19. Bxb7 {[%emt 0:06:23]} (19. Rxc3 {with more complications.} Nd5 20. Bxd5 Bxd5 21. Ba3) 19... Bxb2 {[%emt 0:03:08]} 20. Bxc8 {[%emt 0:02:53]} Rxc8 {[%emt 0:02:04]} 21. exf6 {[%emt 0:02:38]} Qxf6 {[%emt 0:00:13]} 22. Rc2 {[%emt 0:00:02][%cal Bc1c2,Bc2e2,Be2e5,Be5e8,Be8a8][%mdl 32]} c3 {[%emt 0:00:28]} (22... Bxd4 $2 23. Re4 $18) 23. Ng2 {[%emt 0:03:08][%cal Bh4g2,Bg2e3,Be3d5][%mdl 32]} b5 {[%emt 0:03:54]} (23... Rd8 $5 {[%cal Rd7b8]}) 24. Rce2 {[%emt 0:09:22]} Rc4 {[%emt 0:03:18] [#]} (24... Kg7 $14) 25. Ne3 $1 $16 {[%emt 0:01:21] White stays focused until the end.} Rxd4 {[%emt 0:03:31] [#]} (25... Ra4 $16) 26. Nd5 $1 $18 {[%emt 0:00:32]} Qe5 {[%emt 0:01:13]} 27. Rxe5 {[%emt 0:00:53]} Rxd1 {[%emt 0:00:20]} 28. Re8+ {[%emt 0:01:02]} Kg7 {[%emt 0:00:03]} 29. Rxd1 {[%emt 0:00:08]} c2 {[%emt 0:00:03]} 30. Rf1 {[%emt 0:00:53]} c1=Q {[%emt 0:00:21] Against Rc8} 31. Rxc1 {[%emt 0:00:06]} Bxc1 {[%emt 0:00:02][%mdl 4096] Endgame KRN-KBN} 32. Ra8 {[%emt 0:02:46]} Nc5 {[%emt 0:00:09]} 33. Nc7 {[%emt 0:00:13]} Na4 {[%emt 0:02:20]} 34. Rxa6 {[%emt 0:02:52]} Nc3 {[%emt 0:00:04]} 35. Rc6 {[%emt 0:01:19]} b4 {[%emt 0:00:11]} 36. Nd5 {[%emt 0:00:57]} Nxa2 {[%emt 0:00:50] [#]} 37. Nxb4 $1 {[%emt 0:00:11][%mdl 512]} Nxb4 {[%emt 0:00:03]} 38. Rxc1 {[%emt 0:00:10] KR-KN} Nd3 {[%emt 0:00:07]} 39. Rc3 {[%emt 0:00:23]} Ne5 {[%emt 0:00:06]} 40. f4 {[%emt 0:09:14]} Ng4 {[%emt 0:00:05]} 41. h3 {[%emt 0:30:38][%cal Bh2h3,Bh3h4][%mdl 32]} Nf6 {[%emt 0:30:03]} 42. Kg2 {[%emt 0:01:01]} g5 $2 {[%emt 0:01:22]} (42... h5 43. Kf3 Nd5) 43. fxg5 {[%emt 0:00:00]} Ne4 {[%emt 0:00:00]} 44. Rc4 {[%emt 0:00:00]} Nxg5 {[%emt 0:00:00]} 45. Rg4 {[%emt 0:00:00]} Kf6 {[%emt 0:00:00]} 46. h4 {[%emt 0:00:00]} Ne6 {[%emt 0:00:00]} 47. Rg8 {[%emt 0:00:00]} Nd4 {[%emt 0:00:00]} 48. Kh3 $2 {[%emt 0:00:00]} (48. g4 {Threatening mate with g5+.} h6 49. Kg3) 48... Nf5 $2 {[%emt 0:00:00]} (48... Nc6 $18 49. Kg4 Ne7) 49. g4 {[%emt 0:00:00]} Nd6 {[%emt 0:00:00]} 50. g5+ {[%emt 0:00:00]} Kf5 {[%emt 0:00:00]} 51. Rg7 {[%emt 0:00:00]} f6 {[%emt 0:00:00]} 52. gxf6 {[%emt 0:00:00]} Kxf6 {[%emt 0:00:00]} 53. Rxh7 {[%emt 0:00:00]} Kg6 {[%emt 0:00:00]} 54. Ra7 {[%emt 0:00:00]} Ne4 {[%emt 0:00:00]} 55. Ra6+ {[%emt 0:00:00]} Nf6 {[%emt 0:00:00]} 56. Kg3 {[%emt 0:00:00]} Kh5 {[%emt 0:00:00]} 57. Re6 {[%emt 0:00:00]} Ng4 {[%emt 0:00:00]} 58. Ra6 {[%emt 0:00:00]} Nf6 $1 {[%emt 0:00:00]} 59. Ra5+ {[%emt 0:00:00] White mates.} Kh6 {[%emt 0:00:00]} 60. Kf4 {[%emt 0:00:00]} Nh7 {[%emt 0:00:00]} 61. Kf5 {[%emt 0:00:00]} Kg7 {[%emt 0:00:00]} 62. Ra7+ {[%emt 0:00:00]} Kh6 {[%emt 0:00:00]} 63. Rf7 {[%emt 0:00:00] Weighted Error Value: White=0.19 (very precise) /Black=0.28 (precise)} 1-0

[Event "93rd German Championship 2022"]
[Site "Magdeburg"]
[Date "2022.08.17"]
[Round "5.9"]
[White "Wachinger, Nikolas"]
[Black "Bethke, Richard"]
[Result "1-0"]
[ECO "B30"]
[WhiteElo "2437"]
[BlackElo "2381"]
[Annotator "TA"]
[PlyCount "107"]
[EventDate "2022.08.14"]
[EventType "swiss"]
[EventCountry "GER"]
[SourceTitle "playchess.com"]
[Source "ChessBase"]
[SourceQuality "1"]
[TimeControl "40/5400+30:1800+30"]

{[%evp 14,107,33,27,38,44,45,33,50,42,50,31,80,72,70,66,81,85,71,63,81,90,92,87,93,85,95,98,78,0,0,0,26,25,35,9,48,40,58,20,100,25,57,41,59,59,64,89,71,67,157,93,93,98,168,0,0,0,152,164,162,125,122,154,161,0,0,0,107,128,29991,29992,29992,29982,29994,29995,29995,6311,5346,5177,29981,29982,29982,29981,29989,29990,29990,29991,29991,29988,29992,29993,29993,29994,29994,177]} 1. e4 {[%emt 0:02:45]} c5 {[%emt 0:00:11]} 2. Nf3 {[%emt 0:00:25]} Nc6 {[%emt 0:00:19]} 3. Bb5 {[%emt 0:00:30]} d6 {[%emt 0:00:59]} 4. O-O {[%emt 0:01:02]} Bd7 {[%emt 0:00:06]} 5. Re1 {[%emt 0:00:13]} Nf6 {[%emt 0:00:14]} 6. c3 {[%emt 0:00:12]} a6 {[%emt 0:00:37]} 7. Bf1 {[%emt 0:01:40]} Bg4 {[%emt 0:00:19]} 8. d4 {[%emt 0:00:59]} Bxf3 {[%emt 0:08:03] B51: Sicilian: Moscow Variation (3 Bb5+) without 3...Bd7.} 9. gxf3 {[%emt 0:02:03]} g5 {[%emt 0:00:27] 9...cxd4 is the modern continuation.} 10. Kh1 {[%emt 0:24:11] Black must now prevent d5.} Rg8 {[%emt 0:14:38] White is slightly better.} 11. Be3 {[%emt 0:07:40]} e6 {[%emt 0:03:31]} 12. Nd2 {[%emt 0:11:51][%cal Od4d5] [#]} (12. d5 $5 {[%cal Rd5c6]} Ne5 13. Nd2 $14) 12... h5 $146 {[%emt 0:04:59]} (12... Be7 $14 {feels stronger.}) ({Predecessor:} 12... Be7 13. Bd3 h6 14. Rc1 Qc7 15. b4 Nh5 16. Rg1 Rh8 17. a4 Nf4 18. Bxf4 gxf4 {1-0 (45) Kuhn,C (2155)-Vrana,L (2135) ICCF email 2019}) 13. b4 $16 {[%emt 0:07:02]} cxd4 {[%emt 0:10:54]} 14. cxd4 {[%emt 0:00:15]} d5 {[%emt 0:00:21]} 15. b5 {[%emt 0:01:18]} axb5 {[%emt 0:00:22]} 16. Bxb5 {[%emt 0:00:18]} dxe4 {[%emt 0:16:36]} 17. fxe4 {[%emt 0:01:21]} Bb4 {[%emt 0:04:34]} 18. Qb3 $1 {[%emt 0:08:25]} Kf8 {[%emt 0:26:02]} 19. Bxc6 {[%emt 0:11:59]} Bxd2 {[%emt 0:00:03]} 20. Bxd2 {[%emt 0:00:17]} (20. Qxb7 Rb8 21. Qa7 Bxe1 22. Rxe1 Ng4 $15) 20... bxc6 {[%emt 0:00:03]} 21. Qf3 {[%emt 0:00:29]} ({White should play} 21. Qb4+ $16 Qe7 22. Qc4) 21... Ra4 $11 {[%emt 0:05:26]} (21... Qxd4 $2 22. Bc3 g4 23. Qxf6 $18) 22. a3 {[%emt 0:03:37]} Rg6 {[%emt 0:01:56]} (22... Rxd4 23. Bc3 $16) (22... c5 $5) 23. Bb4+ {[%emt 0:00:35]} Kg8 {[%emt 0:00:03]} 24. Rad1 {[%emt 0:00:41]} h4 {[%emt 0:01:12]} 25. Rg1 {[%emt 0:01:14]} g4 {[%emt 0:00:34]} 26. Qe3 {[%emt 0:01:55]} Ra8 {[%emt 0:00:30]} (26... Qc7 $11) 27. h3 {[%emt 0:01:05]} (27. f3 $1 $16) 27... Qc7 {[%emt 0:00:29]} 28. e5 {[%emt 0:00:42]} Nd5 {[%emt 0:00:08]} 29. Qe4 {[%emt 0:00:12]} Nxb4 {[%emt 0:00:50]} 30. axb4 {[%emt 0:00:17]} (30. Rxg4 Nd5 31. Rxg6+ fxg6 32. Qxg6+ Kh8 33. Qxe6 Qh7 $15) 30... g3 {[%emt 0:00:32]} (30... Ra3 $2 31. Rxg4 Kf8 32. Rxg6 fxg6 33. Rc1 $18 (33. Qxg6 Qf7 $16)) 31. Qxh4 {[%emt 0:00:24]} Ra3 {[%emt 0:00:30]} (31... gxf2 $1 $14 32. Qxf2 Qd7) 32. Rxg3 {[%emt 0:01:19]} (32. fxg3 $142 Qb7 33. Rg2) 32... Rgxg3 $16 {[%emt 0:00:21]} 33. fxg3 {[%emt 0:00:06][%mdl 4096] Endgame KQR-KQR} Qb7 {[%emt 0:00:40]} (33... Qd7 $16) 34. d5 $2 {[%emt 0:01:23]} (34. Qg5+ $18 Kf8 35. Kh2 (35. Qd8+ Kg7 $18)) 34... cxd5 $11 {[%emt 0:00:28]} 35. Qd8+ {[%emt 0:00:29]} Kh7 $2 {[%emt 0:00:22]} (35... Kg7 $1 $11 36. Qf6+ Kg8 37. Qd8+ Kg7 38. Qg5+ Kf8) 36. Rd4 $1 $16 {[%emt 0:02:44] White is more active.} (36. Qh4+ $6 Kg8 $11) 36... Ra1+ {[%emt 0:00:03]} 37. Kg2 {[%emt 0:00:28] White threatens Rh4+ and mate.} Ra2+ {[%emt 0:00:01]} 38. Kf3 $1 {[%emt 0:00:20] Threatening mate with Rh4+. Really sharp!} Ra3+ {[%emt 0:00:03] [#]} 39. Kg2 $2 {[%emt 0:00:27]} (39. Kg4 $1 $18 Rc3 40. Qg5 (40. Qh4+ Kg8 $16)) 39... Ra2+ $11 {[%emt 0:00:04]} 40. Kf3 {[%emt 0:00:05]} ({White should try} 40. Kg1 $11 Qa7 41. Qh4+ Kg8 42. Qg5+ (42. Kh1 {leads to mate.} Ra1+ 43. Kg2 Qa2+ 44. Kf3 Rf1+ 45. Ke3 Re1+ 46. Kf3 Qe2+ 47. Kf4 Qf2+ 48. Kg5 Qf5+ 49. Kh6 Qg6#) 42... Kf8 43. Qd8+ Kg7 44. Qg5+ (44. Qh4 {is a self mate.} Ra1+ 45. Kg2 Qa2+ 46. Kf3 Rf1+ 47. Ke3 Re1+ 48. Kd3 Qe2+ 49. Kc3 Rc1+ 50. Kb3 Qc2+ 51. Ka3 Ra1#) 44... Kf8 45. Qd8+ Kg7 46. Qg5+ (46. Qh4 {gets mated.} Ra1+ 47. Kg2 Qa2+ 48. Kf3 Rf1+ 49. Ke3 Re1+ 50. Kd3 Qe2+ 51. Kc3 Rc1+ 52. Kb3 Qc2+ 53. Ka3 Ra1#) 46... Kf8) 40... Ra3+ $16 {[%emt 0:00:03] [#]} 41. Kg4 $1 {[%emt 0:36:57]} Ra4 $2 {[%emt 0:17:50][%mdl 8192] Loses the game.} (41... Rc3 $16) 42. Kg5 {[%emt 0:00:00]} Rxb4 {[%emt 0:02:16]} 43. Kf6 {[%emt 0:00:00]} Qb5 {[%emt 0:01:24]} 44. Rxb4 {[%emt 0:00:00]} Qxb4 {[%emt 0:00:07]} 45. Kxf7 {[%emt 0:00:00] KQ-KQ} (45. Qe8 $142 Qb7 46. Qf8 Qe7+ 47. Qxe7 Kh8 48. Qf8+ Kh7 49. Qg7#) 45... Qb7+ $18 {[%emt 0:04:00]} 46. Kxe6 {[%emt 0:00:00]} Qb3 {[%emt 0:04:28]} 47. Qh4+ {[%emt 0:00:00] White mates.} Kg8 {[%emt 0:00:20]} 48. Qg4+ {[%emt 0:00:00]} Kh8 {[%emt 0:01:15]} 49. Kf6 {[%emt 0:00:00][%csl Gf6][%cal Rg4g7]} Qb6+ {[%emt 0:01:19]} 50. e6 {[%emt 0:00:00][%csl Gf6][%cal Rg4g7]} Qf2+ {[%emt 0:01:16]} 51. Qf4 {[%emt 0:00:00]} Qa7 {[%emt 0:02:09]} 52. Qh6+ {[%emt 0:00:00]} Kg8 {[%emt 0:00:13]} 53. Qg6+ {[%emt 0:00:00]} Kf8 {[%emt 0:00:04]} 54. Qf7+ {[%emt 0:00:00] Weighted Error Value: White=0.17 (very precise) /Black=0.40} 1-0

[Event "93rd German Championship 2022"]
[Site "Magdeburg"]
[Date "2022.08.17"]
[Round "5.10"]
[White "Florstedt, Johannes"]
[Black "Costa, Leonardo"]
[Result "0-1"]
[ECO "B12"]
[WhiteElo "2368"]
[BlackElo "2316"]
[Annotator "TA"]
[PlyCount "114"]
[EventDate "2022.08.14"]
[EventType "swiss"]
[EventCountry "GER"]
[SourceTitle "playchess.com"]
[Source "ChessBase"]
[SourceQuality "1"]
[TimeControl "40/5400+30:1800+30"]

{[%evp 11,114,8,21,-20,20,21,22,7,7,11,14,18,19,9,19,19,21,21,19,21,21,20,29,29,32,14,43,49,46,48,50,41,43,34,42,33,63,63,68,67,79,88,139,118,112,99,147,147,145,124,156,152,131,0,107,65,90,69,89,70,122,33,12,0,115,0,0,-22,-26,-29,0,0,0,0,0,0,8,8,8,8,8,8,8,8,8,8,8,1,8,8,8,-12,-14,-14,-18,-54,-56,-138,-121,-122,-89,-29978,-29979,-29978,-29980]} 1. e4 {[%emt 0:00:03]} c6 {[%emt 0:00:05]} 2. d4 {[%emt 0:00:14]} d5 {[%emt 0:00:04]} 3. e5 {[%emt 0:00:05]} Bf5 {[%emt 0:00:03]} 4. h4 {[%emt 0:00:22]} h5 {[%emt 0:00:06]} 5. Bd3 {[%emt 0:00:25]} Bxd3 {[%emt 0:00:06]} 6. Qxd3 {[%emt 0:00:05]} e6 {[%emt 0:00:07]} 7. Bg5 {[%emt 0:00:13] B12: Caro-Kann: Advance Variation.} Be7 {[%emt 0:00:04]} (7... Qb6 $5 {[%cal Rb6b2]}) 8. Nf3 {[%emt 0:00:10]} Nh6 {[%emt 0:00:06]} 9. c4 {[%emt 0:00:25] The position is equal.} dxc4 {[%emt 0:11:17]} 10. Qxc4 {[%emt 0:01:13]} Nd7 {[%emt 0:00:22]} 11. Nc3 {[%emt 0:00:16]} Nb6 {[%emt 0:01:33]} 12. Qb3 {[%emt 0:00:24]} Nf5 {[%emt 0:02:30]} 13. Rd1 {[%emt 0:00:24] [#]} Qd7 $146 {[%emt 0:16:31]} ({Predecessor:} 13... Qc7 14. O-O Rd8 15. Bxe7 Qxe7 16. g3 O-O 17. Ne4 Rd5 18. Rd3 Rfd8 19. Qd1 Nc4 {1-0 (33) Volokitin,A (2627)-Laznicka,V (2667) Batumi 2019}) 14. Bxe7 {[%emt 0:02:22]} Qxe7 {[%emt 0:02:04]} 15. g3 {[%emt 0:01:20]} O-O-O {[%emt 0:04:26]} 16. O-O {[%emt 0:01:43]} Kb8 {[%emt 0:01:59]} 17. Ne4 {[%emt 0:09:45]} Rd5 {[%emt 0:02:00]} 18. Rd3 {[%emt 0:04:18]} Rhd8 {[%emt 0:01:18][%cal Rf5d4]} 19. Rfd1 {[%emt 0:00:13]} Rb5 {[%emt 0:12:48]} 20. Qc2 {[%emt 0:00:41]} Qb4 {[%emt 0:11:07]} 21. b3 {[%emt 0:26:01]} Rbd5 {[%emt 0:01:15]} 22. Qc1 {[%emt 0:07:35]} Qe7 {[%emt 0:13:56]} 23. a3 {[%emt 0:00:30]} a6 {[%emt 0:04:43]} 24. b4 {[%emt 0:00:46]} Nc8 {[%emt 0:01:56]} 25. Nc5 {[%emt 0:02:57]} Na7 {[%emt 0:00:57]} 26. a4 {[%emt 0:03:25]} Ka8 {[%emt 0:00:21]} (26... Nc8 $142) 27. Qc4 {[%emt 0:01:46]} Kb8 {[%emt 0:00:52]} 28. Ng5 {[%emt 0:04:36]} Rg8 {[%emt 0:02:55]} (28... Nc8 $142) 29. Kf1 {[%emt 0:01:48]} Qc7 {[%emt 0:01:54]} 30. R3d2 {[%emt 0:02:41]} Nc8 {[%emt 0:02:06]} 31. Qe2 {[%emt 0:00:52]} Rh8 {[%emt 0:00:48]} 32. Qc4 {[%emt 0:02:08]} (32. Rd3 $16) 32... Nb6 {[%emt 0:00:17]} (32... Rg8 $1 $11 {remains equal.}) 33. Qc2 {[%emt 0:01:48]} Rhd8 {[%emt 0:00:38][%cal Rf5d4]} 34. Qc3 {[%emt 0:02:24]} ({Don't play} 34. a5 Nc8 $11) 34... Qe7 {[%emt 0:01:40]} 35. Nh3 {[%emt 0:14:20]} Rh8 {[%emt 0:02:46] [#]} (35... Nd7 $14) 36. Rb1 {[%emt 0:01:54]} ({White has to play} 36. Nf4 $1 $16) 36... Rhd8 $14 {[%emt 0:00:33][%cal Rd5d4]} 37. Rbd1 {[%emt 0:03:50]} ({White should try} 37. a5 $11 Na8 38. Rbd1) 37... Rh8 $1 $16 {[%emt 0:00:04]} 38. b5 {[%emt 0:01:15]} (38. Nf4 $16) 38... axb5 $11 {[%emt 0:01:02][%cal Of5d4]} 39. axb5 {[%emt 0:00:06] [#]} (39. Nf4 $5 {[%cal Ra4b5]} g5 40. hxg5 Qxg5 41. Nxd5 Nxd5 42. Qa5 $11) 39... Nxd4 $1 {[%emt 0:00:04]} 40. Rxd4 {[%emt 0:04:28]} Qxc5 {[%emt 0:01:20]} (40... Rxc5 {keeps more tension.} 41. Qa3 cxb5 42. Ng5 Rc7) 41. Qxc5 {[%emt 0:30:20]} Rxc5 {[%emt 0:31:12]} 42. bxc6 {[%emt 0:00:06]} Rxc6 {[%emt 0:00:00]} 43. Ng5 {[%emt 0:00:00]} f6 {[%emt 0:00:00]} 44. exf6 {[%emt 0:00:00]} gxf6 {[%emt 0:00:00]} 45. Nf7 {[%emt 0:00:00]} Re8 {[%emt 0:00:00]} 46. Rd8+ {[%emt 0:00:00]} Rc8 {[%emt 0:00:00]} 47. Rxe8 {[%emt 0:00:00]} Rxe8 {[%emt 0:00:00]} 48. Rd8+ {[%emt 0:00:00]} Rxd8 {[%emt 0:00:00]} 49. Nxd8 {[%emt 0:00:00][%mdl 4096] Endgame KN-KN} e5 {[%emt 0:00:00]} 50. Ne6 {[%emt 0:00:00]} Kc8 {[%emt 0:00:00]} 51. g4 {[%emt 0:00:00]} hxg4 {[%emt 0:00:00] White must now prevent ...Kd7.} 52. h5 {[%emt 0:00:00]} Nc4 $1 {[%emt 0:00:00]} (52... Kd7 $2 {[#]} 53. h6 $1 Kxe6 54. h7 $18) 53. Kg2 {[%emt 0:00:00]} Nd6 {[%emt 0:00:00] Hoping for ...Kd7.} 54. Kg3 {[%emt 0:01:27]} (54. h6 $1 $15) 54... Kd7 $17 {[%emt 0:00:00]} 55. Nc5+ {[%emt 0:00:21]} Kc6 {[%emt 0:00:00] ( -> ...Nf5+)} 56. Nxb7 $2 {[%emt 0:00:32][%mdl 8192]} Nf5+ {[%emt 0:00:00]} 57. Kxg4 {[%emt 0:00:57]} Nh6+ {[%emt 0:00:00] Quite a comeback for Black.  Weighted Error Value: White=0.31/Black=0.10 (very precise)} 0-1

[Event "93rd German Championship 2022"]
[Site "Magdeburg"]
[Date "2022.08.17"]
[Round "5.11"]
[White "Colpe, Malte"]
[Black "Keller, Peter"]
[Result "1-0"]
[ECO "D45"]
[WhiteElo "2369"]
[BlackElo "2377"]
[Annotator "TA"]
[PlyCount "75"]
[EventDate "2022.08.14"]
[EventType "swiss"]
[EventCountry "GER"]
[SourceTitle "playchess.com"]
[Source "ChessBase"]
[SourceQuality "1"]
[TimeControl "40/5400+30:1800+30"]

{[%evp 23,75,0,4,0,20,20,16,25,20,18,20,11,16,19,33,18,40,34,49,39,32,33,48,33,63,26,141,58,102,75,204,204,340,334,345,344,411,414,414,401,398,385,475,433,445,434,468,382,389,356,367,376,510,489]} 1. d4 {[%emt 0:00:03]} Nf6 {[%emt 0:00:13]} 2. c4 {[%emt 0:00:07]} e6 {[%emt 0:00:04]} 3. Nf3 {[%emt 0:00:07]} d5 {[%emt 0:00:44]} 4. Nc3 {[%emt 0:00:16]} c6 {[%emt 0:00:28]} 5. e3 {[%emt 0:00:38]} Nbd7 {[%emt 0:00:33]} 6. Be2 {[%emt 0:00:47]} Bd6 {[%emt 0:01:48]} 7. O-O {[%emt 0:00:50]} O-O {[%emt 0:00:05]} 8. b3 {[%emt 0:00:36]} b6 {[%emt 0:00:25]} 9. Bb2 {[%emt 0:00:16]} Bb7 {[%emt 0:00:06]} 10. Qc2 {[%emt 0:01:37]} Qe7 {[%emt 0:02:04]} 11. Rad1 {[%emt 0:00:37]} Rad8 {[%emt 0:00:30]} 12. Rfe1 {[%emt 0:01:06]} Rfe8 {[%emt 0:02:39]} 13. Bf1 {D45: Semi-Slav: 5 e3.} Ba3 {[%emt 0:19:44]} 14. Bxa3 {[%emt 0:26:08]} Qxa3 15. cxd5 {The position is equal.} exd5 {[%emt 0:02:10] [#]} 16. Rb1 $146 {[%emt 0:11:27]} ({Predecessor:} 16. g3 Qe7 17. Bg2 Ne4 18. Nxe4 dxe4 19. Ne5 Nxe5 20. dxe5 Qxe5 21. Bxe4 g6 22. Bg2 {½-½ (37) Moroni,L (2448)-Michalik,P (2519) Prague 2016}) 16... a5 {[%emt 0:10:36]} 17. Na4 {[%emt 0:04:54]} Qd6 {[%emt 0:10:43]} 18. Rbc1 {[%emt 0:05:56]} Rc8 {[%emt 0:15:54]} 19. Red1 {[%emt 0:06:33]} (19. Ne5 {with more complications.} h6 20. Red1 Qc7 21. f4) 19... Qb8 {[%emt 0:02:46]} 20. g3 {[%emt 0:05:10][%cal Of3e5]} (20. Ne5 {is interesting.} Qa7 21. Qf5 Re6 22. Nxd7 Nxd7 23. Nb2) 20... Rc7 {[%emt 0:03:47]} 21. a3 {[%emt 0:05:50]} (21. Ne5 {seems wilder.} Qa7 22. Nc3 Qb8 23. f4) 21... Qa7 {[%emt 0:08:31]} 22. Nc3 {[%emt 0:11:35][%cal Oc3b5] Threatens to win with Nb5!} Ba6 {[%emt 0:06:21] Against Nb5} 23. Bh3 {[%emt 0:03:23]} c5 {[%emt 0:05:30]} 24. Qf5 {[%emt 0:02:34]} c4 {[%emt 0:04:38]} (24... cxd4 $11 25. Nxd4 Rec8) 25. b4 {[%emt 0:04:44]} ({Worse is} 25. Nxd5 Nxd5 26. Qxd5 Bb7 $11) (25. Nd2 $16) 25... Qa8 {[%emt 0:00:06]} 26. Bg2 {[%emt 0:02:31] White is more active.} Bc8 {[%emt 0:01:44] [#] This costs Black the game.} (26... Nf8 $16) 27. Qf4 $1 $18 {[%emt 0:00:49]} Rc6 {[%emt 0:01:04]} (27... axb4 $142 28. axb4 (28. Qxc7 bxc3 29. Nh4 Qb7 $16) 28... Qb8) 28. Ne5 {[%emt 0:01:40]} Rce6 {[%emt 0:00:08] [#]} 29. Nxd5 $1 {[%emt 0:02:48][%mdl 512]} Nxd5 {[%emt 0:00:49]} (29... Qa7 30. bxa5) 30. Qxf7+ {[%emt 0:00:14]} Kh8 {[%emt 0:00:02]} 31. Nxd7 {[%emt 0:00:28]} Bb7 {[%emt 0:00:38]} 32. Ne5 {[%emt 0:00:58]} ({Less strong is} 32. Rxc4 R6e7 33. Qf5 g6 $18) 32... Rf6 {[%emt 0:00:48]} 33. Qd7 {[%emt 0:00:53]} Re7 {[%emt 0:00:28]} 34. Qh3 {[%emt 0:00:54]} Rh6 {[%emt 0:00:34]} 35. Qf5 {[%emt 0:00:34]} Rf6 {[%emt 0:00:22]} 36. Qc2 {[%emt 0:00:35]} axb4 {[%emt 0:00:28]} 37. axb4 {[%emt 0:00:17]} c3 {[%emt 0:00:06]} 38. Qb3 {[%emt 0:00:35] Weighted Error Value: White=0.13 (very precise) /Black=0.42} 1-0